[Event "Elitserien Allsvenskan 2018-19"]
[Site "Sweden"]
[Date "2019.02.02"]
[Round "5"]
[White "Jogstad, Martin"]
[Black "Penalver, Osmani"]
[Result "1-0"]
[ECO "E04"]
[WhiteElo "2263"]
[BlackElo "2226"]
[Annotator "NA RC"]
[PlyCount "101"]
[EventDate "2018.11.09"]
[EventType "team-tourn"]
[EventCountry "SWE"]
[SourceTitle "playchess.com"]
[Source "ChessBase"]
[SourceQuality "1"]
[TimeControl "40/5400+30:1800+30"]

{[%evp 8,72,28,30,32767,32767,32767,32767,32767,12,19,32767,32767,36,56,48,54,30,90,87,97,95,103,32767,105,88,60,67,32767,105,303,122,277,203,32767,343,326,32767,32767,346,361,397,392,411,599,367,377,368,368,381,376,32767,388,388,417,431,445,32767,431,450,32767,444,474,32767,479,532,421]} 1. d4 {[%emt 0:00:00]} Nf6 {[%emt 0:00:00]} 2. c4 {[%emt 0:00:00]} e6 {[%emt 0:00:00]} 3. g3 {[%emt 0:00:02]} d5 {[%emt 0:00:35]} 4. Nf3 {[%emt 0:00:29]} dxc4 {[%emt 0:04:20]} 5. Bg2 {[%emt 0:00:46]} c5 {[%emt 0:00:37]} 6. O-O {[%emt 0:00:54]} Nc6 {[%emt 0:00:29]} 7. Qa4 {[%emt 0:04:09]} Qa5 {[%emt 0:10:17]} 8. Qxa5 {[%emt 0:04:21]} Nxa5 {[%emt 0:00:14]} 9. Ne5 {[%emt 0:15:34]} Nd7 {[%emt 0:04:42]} 10. Bd2 {[%emt 0:07:12]} Nxe5 {[%emt 0:00:15]} 11. dxe5 {[%emt 0:00:22]} Nc6 {[%emt 0:00:17]} 12. Na3 {[%emt 0:02:53]} Be7 {[%emt 0:03:05]} (12... Nxe5 $11 13. Rfd1 Be7) 13. Nxc4 {[%emt 0:05:37]} O-O {[%emt 0:01:47]} 14. Rfd1 {[%emt 0:09:08]} Rb8 {[%emt 0:10:19]} 15. Bc3 {[%emt 0:02:27]} Rd8 {[%emt 0:10:14]} 16. Rxd8+ {[%emt 0:01:37]} Nxd8 {[%emt 0:01:30]} 17. Rd1 {[%emt 0:01:41]} b5 {[%emt 0:02:51]} 18. Nd6 {[%emt 0:04:02]} Ba6 $2 {[%emt 0:00:54] [#]} (18... b4 $16) 19. b4 $2 {[%emt 0:02:27]} (19. Ba5 $1 $18 {is the precise move to win.}) 19... cxb4 {[%emt 0:05:15]} (19... Bxd6 $16 {keeps fighting.} 20. exd6 c4) 20. Bxb4 {[%emt 0:00:03]} Nb7 {[%emt 0:06:32]} 21. Rc1 {[%emt 0:05:35]} Nxd6 {[%emt 0:03:31]} 22. exd6 {[%emt 0:05:09]} Bd8 {[%emt 0:01:28]} 23. d7 {[%emt 0:05:54]} Bb6 {[%emt 0:00:47]} 24. Be7 {[%emt 0:05:33]} b4 {[%emt 0:02:59]} 25. Rc6 {[%emt 0:00:42]} f6 {[%emt 0:01:43]} (25... g6 $142 26. Kf1 Bd8 27. Bxd8 (27. Rxa6 Bxe7 28. Rxa7 Bd8 $16) 27... Rxd8 28. Rxa6 Rxd7) 26. Rxb6 {[%emt 0:03:37] Promotion} axb6 {[%emt 0:00:05]} 27. d8=Q+ {[%emt 0:00:18]} Rxd8 {[%emt 0:00:05]} 28. Bxd8 {[%emt 0:00:06]} Bc4 {[%emt 0:00:07]} 29. Bxb6 {[%emt 0:00:37]} Bxa2 {[%emt 0:00:04]} 30. Bc5 {[%emt 0:00:21]} Bc4 {[%emt 0:00:07]} 31. Kf1 {[%emt 0:00:57]} b3 {[%emt 0:00:12]} 32. Ba3 {[%emt 0:00:14]} Kf7 {[%emt 0:01:04]} 33. Ke1 {[%emt 0:00:10]} g5 {[%emt 0:04:24]} 34. Kd2 {[%emt 0:00:32]} f5 {[%emt 0:03:40]} 35. e3 {[%emt 0:00:26]} e5 {[%emt 0:00:45]} 36. Kc3 {[%emt 0:00:21]} Be6 $18 {[%emt 0:00:07]} 37. Bc6 {[%emt 0:00:06]} f4 {[%emt 0:00:38]} 38. exf4 {[%emt 0:00:12]} exf4 {[%emt 0:00:41]} 39. gxf4 {[%emt 0:00:05]} Kf6 {[%emt 0:01:22]} 40. fxg5+ {[%emt 0:01:01]} Kxg5 {[%emt 0:00:02]} 41. Ba4 {[%emt 0:31:30]} b2 {[%emt 0:31:05]} 42. Kxb2 {[%emt 0:00:21]} Kg4 {[%emt 0:00:08]} 43. Bd6 {[%emt 0:00:44]} Kh3 {[%emt 0:07:20]} 44. Be8 {[%emt 0:02:00]} Bg4 {[%emt 0:01:13]} 45. Kc3 {[%emt 0:00:16]} Kg2 {[%emt 0:00:20]} 46. Bg3 {[%emt 0:00:10]} h5 {[%emt 0:00:22]} 47. h4 {[%emt 0:00:05]} Kh3 {[%emt 0:02:59]} 48. Kd4 {[%emt 0:00:09]} Kg2 {[%emt 0:00:13]} 49. Ke5 {[%emt 0:00:04]} Kh3 {[%emt 0:00:11]} 50. Kf4 {[%emt 0:00:17]} Kg2 {[%emt 0:00:24]} 51. Kg5 {[%emt 0:00:12]} 1-0

[Event "Elitserien Allsvenskan 2018-19"]
[Site "Sweden"]
[Date "2019.02.02"]
[Round "5"]
[White "Eklund, Joel"]
[Black "Kucuksari, Kaan"]
[Result "1-0"]
[ECO "D35"]
[WhiteElo "2196"]
[BlackElo "2301"]
[Annotator "NA RC"]
[PlyCount "95"]
[EventDate "2018.11.09"]
[EventType "team-tourn"]
[EventCountry "SWE"]
[SourceTitle "playchess.com"]
[Source "ChessBase"]
[SourceQuality "1"]
[TimeControl "40/5400+30:1800+30"]

{[%evp 8,68,11,8,16,17,32767,20,27,19,32767,32767,32767,18,32767,11,29,35,42,36,32,37,30,32767,41,35,39,43,32767,54,83,79,65,65,32767,32767,64,75,77,62,66,66,54,47,65,60,86,32767,113,89,105,103,139,79,142,125,120,32767,32767,32767,32767,32767,116]} 1. d4 {[%emt 0:00:00]} Nf6 {[%emt 0:00:00]} 2. c4 {[%emt 0:02:14]} e6 {[%emt 0:00:00]} 3. Nc3 {[%emt 0:00:08]} d5 {[%emt 0:00:00]} 4. cxd5 {[%emt 0:00:31]} exd5 {[%emt 0:00:04]} 5. Bg5 {[%emt 0:00:12]} c6 {[%emt 0:00:06]} 6. e3 {[%emt 0:01:25]} Be7 {[%emt 0:00:43]} 7. Bd3 {[%emt 0:00:12]} Nbd7 {[%emt 0:00:12]} 8. Qc2 {[%emt 0:00:37]} O-O {[%emt 0:01:56]} 9. Nf3 {[%emt 0:00:39]} Re8 {[%emt 0:00:05]} 10. O-O {[%emt 0:06:31]} Nf8 {[%emt 0:01:11]} 11. Rab1 {[%emt 0:04:48]} a5 {[%emt 0:00:08]} 12. a3 {[%emt 0:00:29]} Be6 {[%emt 0:05:04]} 13. b4 {[%emt 0:00:15]} axb4 {[%emt 0:01:04]} 14. axb4 {[%emt 0:00:06]} N6d7 {[%emt 0:00:06] LiveBook: 9 Games} 15. Bxe7 {[%emt 0:01:41]} Qxe7 {[%emt 0:00:36]} 16. b5 {[%emt 0:01:02]} Rec8 {[%emt 0:01:18]} 17. bxc6 {[%emt 0:01:29]} bxc6 {[%emt 0:00:14]} 18. Na4 {[%emt 0:08:11]} f6 {[%emt 0:08:32]} 19. Rfc1 {[%emt 0:00:33]} Bf7 {[%emt 0:02:00]} 20. h3 {[%emt 0:09:17]} Rc7 {[%emt 0:09:43]} 21. Nb6 {[%emt 0:07:56]} Nxb6 {[%emt 0:04:22]} 22. Rxb6 {[%emt 0:00:11]} Be8 {[%emt 0:09:59]} 23. Nd2 {[%emt 0:13:09]} Rca7 {[%emt 0:08:55]} 24. Rcb1 {[%emt 0:02:40]} Ra2 {[%emt 0:03:32]} 25. R1b2 {[%emt 0:01:56]} Ra1+ {[%emt 0:01:45]} 26. Kh2 {[%emt 0:03:04]} Rc8 {[%emt 0:09:25]} 27. g3 {[%emt 0:03:40]} Bd7 {[%emt 0:03:16]} 28. Nb3 {[%emt 0:01:19]} Ra7 {[%emt 0:01:20]} 29. Nc5 {[%emt 0:00:34]} Be8 {[%emt 0:00:33]} 30. Kg2 {[%emt 0:11:41]} Bg6 {[%emt 0:02:02]} (30... g6 $142) 31. Bxg6 {[%emt 0:01:59]} hxg6 {[%emt 0:00:21]} 32. h4 {[%emt 0:01:14]} Qe8 {[%emt 0:06:46]} 33. Kh2 {[%emt 0:01:16]} Rf7 {[%emt 0:04:01]} 34. Nb7 {[%emt 0:06:43]} Rd7 $16 {[%emt 0:06:42]} ({Black should try} 34... Qe6 $14) 35. R2b3 {[%emt 0:02:19]} g5 {[%emt 0:05:21]} 36. hxg5 {[%emt 0:01:52]} Ne6 {[%emt 0:05:48]} 37. g6 {[%emt 0:04:49]} Ng5 {[%emt 0:00:40]} 38. Qf5 {[%emt 0:01:01]} Qe7 {[%emt 0:00:35]} 39. f4 {[%emt 0:01:11]} Nf3+ {[%emt 0:00:24]} 40. Kg2 {[%emt 0:00:32]} Nd2 {[%emt 0:00:01]} 41. Rd3 {[%emt 0:30:20]} Nc4 {[%emt 0:03:59]} 42. Qh5 {[%emt 0:00:00]} Qe4+ {[%emt 0:04:42]} 43. Kf2 {[%emt 0:00:00]} Nxb6 {[%emt 0:01:09]} 44. Qh7+ {[%emt 0:00:00]} Kf8 {[%emt 0:00:06]} 45. Qh8+ {[%emt 0:00:00]} Ke7 {[%emt 0:00:01]} 46. Qxg7+ {[%emt 0:00:00]} Ke6 {[%emt 0:00:01]} 47. Nc5+ {[%emt 0:00:00]} Kf5 {[%emt 0:00:52]} 48. Qh6 {[%emt 0:00:13]} 1-0

[Event "Elitserien Allsvenskan 2018-19"]
[Site "Sweden"]
[Date "2019.03.29"]
[Round "7.4"]
[White "Lindgren, Philip"]
[Black "Ertan, Can"]
[Result "1-0"]
[ECO "E15"]
[WhiteElo "2383"]
[BlackElo "2404"]
[Annotator "NA RC"]
[PlyCount "71"]
[EventDate "2018.11.09"]
[EventType "team-tourn"]
[EventCountry "SWE"]
[SourceTitle "playchess.com"]
[Source "ChessBase"]
[SourceQuality "1"]
[TimeControl "40/5400+30:1800+30"]

1. d4 {[%emt 0:00:00]} Nf6 {[%emt 0:00:00]} 2. c4 {[%emt 0:00:00]} e6 {[%emt 0:00:00]} 3. Nf3 {[%emt 0:00:27]} b6 {[%emt 0:00:00]} 4. g3 {[%emt 0:01:39]} Ba6 {[%emt 0:00:00]} 5. b3 {[%emt 0:04:56]} Bb4+ {[%emt 0:00:00]} 6. Bd2 {[%emt 0:00:26]} Be7 {[%emt 0:00:01]} 7. Bg2 {[%emt 0:01:20]} c6 {[%emt 0:01:12]} 8. Bc3 {[%emt 0:06:23]} O-O {[%emt 0:02:56]} 9. Nbd2 {[%emt 0:02:25]} d5 {[%emt 0:00:15]} 10. Ne5 {[%emt 0:06:56]} Nfd7 {[%emt 0:00:06]} 11. Nxd7 {[%emt 0:02:37]} Nxd7 {[%emt 0:00:32]} 12. O-O {[%emt 0:00:46]} Rc8 {[%emt 0:02:29]} 13. Re1 {[%emt 0:06:19]} Bf6 {[%emt 0:15:37] E15: Queen's Indian: 4 g3 sidelines, 4 g3 Ba6 and 4 g3 Bb7 early deviations} (13... c5 14. cxd5 exd5 15. Rc1 cxd4 16. Bxd4 Nc5 17. Bb2 d4 18. Nf3 d3 19. exd3 Nxd3 20. Rxc8 Qxc8 21. Rxe7 Nxb2 {½-½ (77) Eljanov,P (2717)-Karjakin,S (2762) Baku 2015}) 14. e4 {[%emt 0:03:37]} dxc4 $146 {[%emt 0:00:46]} ({Predecessor:} 14... Re8 15. Rc1 dxc4 16. Nxc4 Nf8 17. Ne3 Bb7 18. e5 Be7 19. f4 Qd7 20. Qg4 c5 21. d5 exd5 22. Qxd7 Nxd7 23. Nxd5 {1-0 (36) Nagel,B (2224)-Suchin,D (2168) Berlin 2004}) 15. e5 {[%emt 0:03:26]} Be7 {[%emt 0:04:48]} 16. bxc4 {[%emt 0:03:34]} Qc7 {[%emt 0:04:43]} 17. Qg4 {[%emt 0:08:56]} Rfd8 {[%emt 0:04:28]} 18. Rad1 {[%emt 0:02:34]} Rb8 {[%emt 0:01:46]} 19. h4 {[%emt 0:09:26]} b5 {[%emt 0:01:24]} 20. c5 {[%emt 0:01:15]} b4 {[%emt 0:00:35]} 21. Ba1 {[%emt 0:03:54]} Bd3 {[%emt 0:07:52]} 22. Qf3 {[%emt 0:03:44]} Bb5 {[%emt 0:00:03]} 23. Ne4 {[%emt 0:01:21]} Qa5 {[%emt 0:02:26] [#]} (23... Qc8 $16) 24. Nd6 $1 {[%emt 0:04:39]} Bxd6 {[%emt 0:00:52]} 25. exd6 {[%emt 0:01:55]} Ba4 {[%emt 0:06:38]} ({Reject} 25... Qxa2 $6 {[#]} 26. d5 $1 $18 {[%mdl 512]}) (25... Qa3 $142 26. Qxa3 bxa3) 26. Rc1 {[%emt 0:03:42]} Nf6 {[%emt 0:05:25]} 27. d5 {[%emt 0:04:01]} Nxd5 {[%emt 0:00:04]} 28. Bd4 {[%emt 0:02:42]} Ne7 {[%emt 0:23:28]} 29. Bxg7 {[%emt 0:05:14]} Kxg7 30. dxe7 {[%emt 0:00:05]} Rg8 {[%emt 0:04:58]} 31. Rc4 {[%emt 0:02:19]} h5 {[%emt 0:06:16]} 32. Qxh5 {[%emt 0:01:13]} Qc7 {[%emt 0:00:23]} 33. Qg5+ {[%emt 0:03:04]} Kh7 {[%emt 0:00:05]} 34. Qh5+ {[%emt 0:00:24]} Kg7 {[%emt 0:00:04]} 35. Rg4+ {[%emt 0:00:34]} Kf6 {[%emt 0:00:05]} 36. Rf4+ {[%emt 0:00:07]} 1-0

[Event "Elitserien Allsvenskan 2018-19"]
[Site "Sweden"]
[Date "2019.03.30"]
[Round "8.2"]
[White "Ertan, Can"]
[Black "Ingbrandt, Johan"]
[Result "1-0"]
[ECO "C65"]
[WhiteElo "2404"]
[BlackElo "2363"]
[Annotator "ChessBase"]
[PlyCount "47"]
[EventDate "2018.11.09"]
[EventType "team-tourn"]
[EventCountry "SWE"]
[SourceTitle "playchess.com"]
[Source "ChessBase"]
[SourceQuality "1"]
[TimeControl "40/5400+30:1800+30"]

1. e4 {[%emt 0:00:00]} e5 {[%emt 0:00:00]} 2. Nf3 {[%emt 0:00:00]} Nc6 {[%emt 0:00:02]} 3. Bb5 {[%emt 0:00:00]} Nf6 {[%emt 0:00:32]} 4. O-O {[%emt 0:00:00]} Bc5 {[%emt 0:00:35]} 5. c3 {[%emt 0:01:00]} O-O {[%emt 0:00:26]} 6. d4 {[%emt 0:00:30]} Bb6 {[%emt 0:00:17]} 7. Bg5 {[%emt 0:01:00]} h6 {[%emt 0:00:31]} 8. Bh4 {[%emt 0:00:09]} d6 {[%emt 0:01:10]} 9. Qc1 {[%emt 0:03:02]} Qe7 {[%emt 0:14:11]} 10. a4 {[%emt 0:23:04]} a5 {[%emt 0:04:32]} 11. Nbd2 {[%emt 0:10:23]} exd4 {[%emt 0:14:35]} 12. Bxc6 {[%emt 0:00:15]} dxc3 {[%emt 0:00:50]} 13. bxc3 {[%emt 0:05:30]} bxc6 {[%emt 0:02:06]} 14. e5 {[%emt 0:00:02]} dxe5 {[%emt 0:02:39]} 15. Ne4 {[%emt 0:00:03]} Kh7 {[%emt 0:17:17]} 16. Re1 {[%emt 0:00:24]} Bf5 {[%emt 0:02:56]} 17. Nxf6+ {[%emt 0:02:30]} gxf6 {[%emt 0:00:35]} 18. Rxe5 {[%emt 0:00:03]} Qxe5 {[%emt 0:02:10]} 19. Nxe5 {[%emt 0:00:30]} fxe5 {[%emt 0:00:05]} 20. Qd1 {[%emt 0:03:23]} Bg6 {[%emt 0:08:20]} 21. Qd7 {[%emt 0:02:14]} Rae8 {[%emt 0:01:12]} 22. Be7 {[%emt 0:00:51]} Rg8 {[%emt 0:00:08]} 23. Re1 {[%emt 0:00:07]} e4 {[%emt 0:00:24]} 24. c4 {[%emt 0:00:38]} 1-0

[Event "Elitserien Allsvenskan 2018-19"]
[Site "Sweden"]
[Date "2019.03.30"]
[Round "8.4"]
[White "Akesson, Ralf"]
[Black "Lindgren, Philip"]
[Result "1/2-1/2"]
[ECO "D11"]
[WhiteElo "2343"]
[BlackElo "2383"]
[Annotator "NA"]
[PlyCount "89"]
[EventDate "2018.11.09"]
[EventType "team-tourn"]
[EventCountry "SWE"]
[SourceTitle "playchess.com"]
[Source "ChessBase"]
[SourceQuality "1"]
[TimeControl "40/5400+30:1800+30"]

1. d4 {[%emt 0:00:00]} d5 {[%emt 0:00:00]} 2. c4 {[%emt 0:00:00]} c6 {[%emt 0:00:13]} 3. Nf3 {[%emt 0:00:14]} Nf6 {[%emt 0:00:42]} 4. e3 {[%emt 0:00:42]} Bg4 {[%emt 0:01:20]} 5. Qb3 {[%emt 0:02:59]} Qc7 {[%emt 0:01:37]} 6. Ne5 {[%emt 0:02:35] D11: Slav Defence: 3 Nf3 sidelines and 3...Nf6 4 e3 Bg4} (6. cxd5 Bxf3 7. gxf3 cxd5 8. Nc3 e6 9. Rg1 Nc6 10. Bd2 g6 11. f4 Be7 12. Rc1 Qd7 13. f3 O-O {½-½ (26) Pashikian,A (2599)-Andriasian,Z (2604) Yerevan 2019}) 6... Be6 {[%emt 0:08:31]} 7. Nc3 {[%emt 0:02:14]} Nbd7 {[%emt 0:08:11]} 8. f4 {[%emt 0:04:29]} g6 {[%emt 0:08:18]} 9. Bd2 {[%emt 0:02:26]} Bg7 {[%emt 0:06:11]} 10. Rc1 {[%emt 0:01:27]} dxc4 $146 {[%emt 0:02:15]} ({Predecessor:} 10... Qb6 11. Qa3 Qd8 12. cxd5 Nxd5 13. e4 Nxc3 14. bxc3 {1-0 (64) Kanep,M (2452)-Frey,H (2346) Dos Hermanas 2004}) 11. Bxc4 {[%emt 0:00:16]} Bxc4 {[%emt 0:01:00]} 12. Qxc4 {[%emt 0:00:55]} O-O {[%emt 0:01:14]} 13. O-O {[%emt 0:02:48]} Rad8 {[%emt 0:04:08]} 14. Rfd1 {[%emt 0:11:41]} Nb6 {[%emt 0:03:10]} 15. Qe2 {[%emt 0:03:48]} Qc8 {[%emt 0:04:30]} 16. Qf3 {[%emt 0:09:33]} Qe6 {[%emt 0:04:44]} 17. b3 {[%emt 0:07:37]} Nfd7 {[%emt 0:08:58]} 18. Ne4 {[%emt 0:07:03]} Qd5 {[%emt 0:08:59]} 19. Bb4 {[%emt 0:03:02]} Rfe8 {[%emt 0:01:50]} 20. Nc3 {[%emt 0:13:58]} Qxf3 {[%emt 0:02:59]} 21. gxf3 {[%emt 0:00:29]} e6 {[%emt 0:04:26]} 22. Ne4 {[%emt 0:04:58]} Nd5 {[%emt 0:05:36]} 23. Bd2 {[%emt 0:00:26]} Bf8 {[%emt 0:01:06]} 24. Kf2 {[%emt 0:00:48]} Nxe5 {[%emt 0:02:41]} 25. fxe5 {[%emt 0:01:26]} Kg7 {[%emt 0:03:35]} 26. Nc5 {[%emt 0:04:57]} Bxc5 {[%emt 0:01:51]} 27. dxc5 {[%emt 0:00:06]} f5 {[%emt 0:03:47]} 28. exf6+ {[%emt 0:02:19]} Nxf6 {[%emt 0:00:11]} 29. Ba5 {[%emt 0:02:23]} Rxd1 {[%emt 0:01:26]} 30. Rxd1 {[%emt 0:00:03]} Kf7 {[%emt 0:00:48]} 31. e4 {[%emt 0:01:28]} Re7 {[%emt 0:00:31]} 32. Rd8 {[%emt 0:00:35]} Rd7 {[%emt 0:00:38]} 33. Ra8 {[%emt 0:00:33]} a6 {[%emt 0:00:27]} 34. Ke3 {[%emt 0:01:50]} e5 {[%emt 0:00:22]} 35. Rc8 {[%emt 0:00:40]} Ke6 {[%emt 0:00:24]} 36. Bc7 {[%emt 0:00:41]} Rf7 {[%emt 0:00:46]} 37. Bd6 {[%emt 0:00:30]} g5 {[%emt 0:00:31]} 38. h3 {[%emt 0:01:28]} h5 {[%emt 0:00:14]} 39. Ke2 {[%emt 0:01:33]} g4 {[%emt 0:00:47]} 40. hxg4 {[%emt 0:01:06]} hxg4 {[%emt 0:00:07]} 41. fxg4 {[%emt 0:31:22]} Nxe4 {[%emt 0:06:02]} 42. Re8+ $11 {[%emt 0:00:00]} Kd7 {[%emt 0:04:50]} 43. Rxe5 {[%emt 0:00:00]} Nxd6 {[%emt 0:00:15]} 44. cxd6 {[%emt 0:00:00]} Kxd6 {[%emt 0:00:07]} 45. Rg5 {[%emt 0:00:00] Ke5} 1/2-1/2

[Event "Elitserien Allsvenskan 2018-19"]
[Site "Sweden"]
[Date "2019.03.30"]
[Round "8.4"]
[White "Ornstein, Axel"]
[Black "Ernst, Thomas"]
[Result "1-0"]
[ECO "D45"]
[WhiteElo "2303"]
[BlackElo "2330"]
[Annotator "NA"]
[PlyCount "85"]
[EventDate "2018.11.09"]
[EventType "team-tourn"]
[EventCountry "SWE"]
[SourceTitle "playchess.com"]
[Source "ChessBase"]
[SourceQuality "1"]
[TimeControl "40/5400+30:1800+30"]

1. d4 {[%emt 0:00:13]} d5 {[%emt 0:00:08]} 2. c4 {[%emt 0:00:21]} c6 {[%emt 0:00:09]} 3. Nc3 {[%emt 0:01:05]} Nf6 {[%emt 0:00:13]} 4. e3 {[%emt 0:00:15]} e6 {[%emt 0:00:32]} 5. Nf3 {[%emt 0:00:06]} Nbd7 {[%emt 0:00:14]} 6. Qc2 {[%emt 0:00:04]} Bd6 {[%emt 0:00:23]} 7. Bd3 {[%emt 0:00:06]} O-O {[%emt 0:03:15]} 8. O-O {[%emt 0:00:20]} dxc4 {[%emt 0:00:21]} 9. Bxc4 {[%emt 0:00:02]} b5 {[%emt 0:00:13]} 10. Be2 {[%emt 0:00:07]} Bb7 {[%emt 0:00:22]} 11. Rd1 {[%emt 0:00:30]} Qe7 {[%emt 0:03:04] D46: Semi-Slav: 5 e3 Nbd7 6 Bd3, Black avoids the Meran} (11... Qc7 12. Bd2 a5 13. Rac1 Rac8 14. Ne4 Nxe4 15. Qxe4 c5 16. Qh4 Bxf3 17. Bxf3 b4 18. dxc5 Nxc5 19. a3 Qd8 20. Qxd8 Rcxd8 21. axb4 {½-½ (66) Bocharov,D (2594)-Vitiugov,N (2740) Sochi 2018}) 12. b3 {[%emt 0:09:39]} a6 {[%emt 0:18:56]} 13. a4 {[%emt 0:04:31]} Rfc8 $146 {[%emt 0:15:17]} ({Predecessor:} 13... Rac8 14. Bb2 b4 15. Ne4 Nxe4 16. Qxe4 a5 17. Nd2 Nb6 18. Rac1 {1-0 (33) Moiseenko,V (2231)-Burdyko,A (2105) Dagomys 2009}) 14. Ne4 {[%emt 0:07:20]} Nxe4 {[%emt 0:07:18]} 15. Qxe4 {[%emt 0:00:04]} e5 {[%emt 0:00:57]} 16. axb5 {[%emt 0:12:23]} axb5 {[%emt 0:02:28]} 17. Rxa8 {[%emt 0:00:39]} Bxa8 {[%emt 0:00:11]} 18. dxe5 {[%emt 0:02:29]} Nxe5 {[%emt 0:00:23]} 19. Nxe5 {[%emt 0:00:26]} Qxe5 {[%emt 0:01:49]} 20. Qxe5 {[%emt 0:00:06]} Bxe5 {[%emt 0:00:06]} 21. Ba3 {[%emt 0:04:19]} Bf6 {[%emt 0:06:53]} 22. Bc5 {[%emt 0:07:55]} Rd8 {[%emt 0:00:19]} 23. Rxd8+ {[%emt 0:00:27]} Bxd8 {[%emt 0:00:06]} 24. Bg4 {[%emt 0:00:22]} g6 {[%emt 0:01:31]} 25. e4 {[%emt 0:00:25]} Bb7 {[%emt 0:06:16]} 26. f4 {[%emt 0:05:59]} f5 {[%emt 0:02:55]} 27. exf5 {[%emt 0:00:21]} Bc8 {[%emt 0:00:09]} 28. Bf3 {[%emt 0:00:03]} Bxf5 {[%emt 0:00:24]} 29. Bxc6 {[%emt 0:00:08]} Be6 {[%emt 0:00:11]} 30. b4 {[%emt 0:00:14]} Bc4 {[%emt 0:00:05]} 31. Kf2 {[%emt 0:00:15]} Kf7 {[%emt 0:00:37]} 32. Bd7 {[%emt 0:01:01]} Be7 {[%emt 0:02:06]} 33. Bxe7 {[%emt 0:00:11]} Kxe7 {[%emt 0:00:06]} 34. Bg4 {[%emt 0:00:08]} Kd6 {[%emt 0:00:39]} 35. Ke3 {[%emt 0:00:10]} Bd5 {[%emt 0:00:58]} 36. g3 {[%emt 0:00:10]} h6 {[%emt 0:00:36]} 37. Kd4 $18 {[%emt 0:02:11]} Bc6 {[%emt 0:02:29]} 38. Be2 {[%emt 0:01:37]} Bd7 {[%emt 0:00:43]} 39. Bd3 {[%emt 0:03:23]} Be8 {[%emt 0:00:08]} 40. h4 {[%emt 0:04:44]} h5 {[%emt 0:00:16]} 41. Bc2 {[%emt 0:30:10]} Bf7 {[%emt 0:30:15]} 42. Be4 {[%emt 0:00:07]} Be8 {[%emt 0:00:15]} 43. Bd3 {[%emt 0:00:06] Kd5+ Ke4+} 1-0

[Event "Elitserien Allsvenskan 2018-19"]
[Site "Sweden"]
[Date "2019.03.30"]
[Round "8.5"]
[White "Brynell, Stellan"]
[Black "Bergstrom, Peter"]
[Result "1-0"]
[ECO "B10"]
[WhiteElo "2403"]
[BlackElo "2299"]
[Annotator "ChessBase"]
[PlyCount "79"]
[EventDate "2018.11.09"]
[EventType "team-tourn"]
[EventCountry "SWE"]
[SourceTitle "playchess.com"]
[Source "ChessBase"]
[SourceQuality "1"]
[TimeControl "40/5400+30:1800+30"]

1. e4 {[%emt 0:00:05]} c6 {[%emt 0:00:00]} 2. c4 {[%emt 0:00:50]} d5 {[%emt 0:00:31]} 3. exd5 {[%emt 0:00:07]} cxd5 {[%emt 0:00:05]} 4. cxd5 {[%emt 0:02:06]} Nf6 {[%emt 0:00:12]} 5. Nc3 {[%emt 0:00:04]} g6 {[%emt 0:01:15]} 6. d4 {[%emt 0:02:47]} Bg7 {[%emt 0:07:19]} 7. Bb5+ {[%emt 0:01:31]} Nbd7 {[%emt 0:00:37]} 8. d6 {[%emt 0:00:21]} e6 {[%emt 0:01:31]} 9. Nf3 {[%emt 0:23:05]} O-O {[%emt 0:00:21]} 10. O-O {[%emt 0:00:55]} a6 {[%emt 0:01:46]} 11. Be2 {[%emt 0:14:57]} b5 {[%emt 0:01:57]} 12. Ne5 {[%emt 0:06:49]} Bb7 {[%emt 0:09:20]} 13. Bf3 {[%emt 0:02:22]} Bxf3 {[%emt 0:06:39]} 14. Qxf3 {[%emt 0:02:56]} Nb6 {[%emt 0:03:28]} 15. Bg5 {[%emt 0:01:23]} h6 {[%emt 0:05:37]} 16. Nc6 {[%emt 0:01:58]} hxg5 {[%emt 0:09:51]} 17. Nxd8 {[%emt 0:00:23]} Rfxd8 {[%emt 0:00:11]} 18. Rac1 {[%emt 0:06:08]} Nc4 {[%emt 0:02:33]} 19. Qe2 {[%emt 0:01:51]} Nxd6 {[%emt 0:00:46]} 20. Rfd1 {[%emt 0:00:40]} Nf5 {[%emt 0:01:12]} 21. Ne4 {[%emt 0:06:40]} Nxd4 {[%emt 0:08:00]} 22. Nxf6+ {[%emt 0:03:02]} Bxf6 {[%emt 0:00:57]} 23. Qe4 {[%emt 0:00:06]} Ra7 {[%emt 0:00:45]} 24. g3 {[%emt 0:03:22]} Rad7 {[%emt 0:00:54]} 25. Kg2 {[%emt 0:00:13]} Kg7 {[%emt 0:00:32]} 26. h3 {[%emt 0:00:39]} Kg8 {[%emt 0:12:42]} 27. b3 {[%emt 0:02:57]} Kg7 {[%emt 0:00:30]} 28. Rd3 {[%emt 0:00:34]} Ra7 {[%emt 0:07:14]} 29. Rdc3 {[%emt 0:01:42]} Rdd7 {[%emt 0:02:38]} 30. Rd3 {[%emt 0:06:13]} Rd8 {[%emt 0:04:20]} 31. Rdc3 {[%emt 0:01:42]} Rdd7 {[%emt 0:00:17]} 32. Rc8 {[%emt 0:00:57]} a5 {[%emt 0:01:50]} 33. Ra8 {[%emt 0:01:14]} a4 {[%emt 0:00:44]} 34. bxa4 {[%emt 0:01:35]} bxa4 {[%emt 0:01:21]} 35. Rxa7 {[%emt 0:00:17]} Rxa7 {[%emt 0:00:02]} 36. Rc4 {[%emt 0:03:05]} Nb5 {[%emt 0:05:55]} 37. Qe3 {[%emt 0:01:09]} Ra8 {[%emt 0:01:24]} 38. Rb4 {[%emt 0:00:55]} Nc3 {[%emt 0:00:32]} 39. Rb7 {[%emt 0:00:12]} Ra6 {[%emt 0:00:25]} 40. Qd3 {[%emt 0:00:36]} 1-0